bitfinex/quotes_SOLUSD_20240818
["timestamp","ask_amount","ask_price","bid_price","bid_amount"]
[1723995063360,16.89815088,145.92,145.87,8.84]
[1723995063677,1.71365099,145.91,145.81,35.36]
[1723995063868,1.83914099,145.91,145.83,8.84]
[1723995064061,1.83914099,145.91,145.84,20.0]
[1723995064566,46.83914099,145.91,145.84,20.0]
[1723995065586,0.25098,145.9,145.8,0.12549]
[1723995065772,6.4778,145.87,145.76,6.3113]
[1723995065982,6.4778,145.87,145.79,8.84]
[1723995065983,1.71432119,145.86,145.79,8.84]
[1723995066360,1.71431535,145.85,145.79,8.84]
[1723995066560,1.71431535,145.85,145.76,6.3113]
[1723995066857,16.89881535,145.85,145.78,8.84]
[1723995067058,45.0,145.84,145.78,8.84]
[1723995067273,15.1845,145.85,145.8,8.84]
[1723995067677,15.1845,145.85,145.82,8.84]
[1723995068466,6.4778,145.87,145.84,8.84]
[1723995069665,7.6701687,145.87,145.84,8.84]
[1723995070664,1.1923687,145.87,145.84,8.84]
[1723995070864,15.1845,145.89,145.84,8.84]
[1723995071380,7.67003047,145.9,145.86,8.84]
[1723995071575,7.16053914,145.93,145.86,8.84]
[1723995071576,15.1845,145.93,145.86,8.84]
[1723995072680,16.89814991,145.93,145.86,8.84]
[1723995072881,46.71365579,145.92,145.86,8.84]
[1723995073381,46.71365579,145.92,145.84,8.84]
[1723995073685,0.37647,145.91,145.84,8.84]
[1723995073869,1.71407725,145.9,145.82,8.84]
[1723995074065,1.71407725,145.9,145.83,20.0]
[1723995074066,1.71407461,145.89,145.83,20.0]
[1723995075687,1.71400628,145.88,145.83,20.0]
[1723995075889,45.0,145.9,145.83,20.0]
[1723995076594,1.71400925,145.89,145.8,22.15]
[1723995076803,1.71400925,145.89,145.81,20.0]
[1723995077295,6.93607,145.88,145.81,20.0]
[1723995077468,63.33799292,145.87,145.78,37.8982]
[1723995078481,63.33799292,145.87,145.8,22.15]
[1723995078686,61.6236,145.87,145.8,22.15]
[1723995079288,6.5596,145.88,145.84,22.15]
[1723995079489,16.6236,145.9,145.85,1.07690798]
[1723995079805,16.6236,145.9,145.84,22.15]
[1723995080786,1.32242425,145.89,145.81,22.40098]
[1723995080986,1.32242425,145.89,145.82,20.12549]
[1723995081782,1.32242425,145.89,145.82,20.0]
[1723995081980,46.32242425,145.89,145.82,20.0]
[1723995083287,0.37647,145.88,145.82,20.0]
[1723995084689,0.37647,145.88,145.78,15.7482]
[1723995084690,2.09078463,145.88,145.79,22.15]
[1723995084876,2.09078406,145.88,145.8,20.0]
[1723995085088,0.37647,145.88,145.8,20.0]
[1723995085669,2.09078356,145.88,145.8,20.0]
[1723995085892,0.37647,145.88,145.8,20.0]
[1723995086499,0.12549,145.88,145.81,22.15]
[1723995086684,45.0,145.89,145.81,22.15]
[1723995087194,45.0,145.89,145.83,22.15]
[1723995087796,46.71398385,145.89,145.83,22.15]
[1723995088096,45.0,145.89,145.83,22.15]
[1723995088301,45.0,145.89,145.81,22.27549]
[1723995088599,45.0,145.89,145.82,20.0]
[1723995089375,46.71398464,145.89,145.82,20.0]
[1723995091389,6.5596,145.88,145.82,20.0]
[1723995091591,46.83983253,145.87,145.79,22.15]
[1723995091803,46.83983253,145.87,145.8,20.0]
[1723995092108,45.12549,145.87,145.8,20.0]
[1723995092683,45.0,145.87,145.81,22.15]
[1723995092884,1.71419375,145.86,145.8,20.0]
[1723995093087,1.71435358,145.85,145.8,20.0]
[1723995093599,45.0,145.87,145.8,20.0]
[1723995094197,1.71432614,145.86,145.8,20.0]
[1723995094499,1.7143312,145.85,145.8,20.0]
[1723995095481,45.0,145.87,145.8,20.0]
[1723995095894,1.71431523,145.86,145.8,20.0]
[1723995096076,1.71432901,145.85,145.8,20.0]
[1723995096283,1.71432901,145.85,145.79,22.15]
[1723995096487,1.71432901,145.85,145.8,28.86]
[1723995096689,1.71432901,145.85,145.8,8.86]
[1723995097102,1.71432902,145.86,145.8,8.86]
[1723995097291,45.0,145.87,145.8,8.86]
[1723995097605,46.71432619,145.87,145.8,8.86]
[1723995099197,16.0923,145.86,145.8,8.86]
[1723995099712,16.0923,145.86,145.82,8.86]
[1723995100326,16.0923,145.86,145.84,8.86]
[1723995100920,7.75284723,145.88,145.84,8.86]
[1723995101419,6.5596,145.88,145.84,8.86]
[1723995106315,1.71415004,145.87,145.82,8.86]
[1723995106995,6.5596,145.88,145.82,8.86]
[1723995107397,6.5596,145.88,145.84,8.86]
[1723995112614,1.71405406,145.87,145.82,8.86]
[1723995112921,46.71405406,145.87,145.82,8.86]
[1723995117103,45.0,145.87,145.82,8.86]
[1723995117505,1.71422684,145.86,145.8,8.86]
[1723995117713,1.71438899,145.85,145.8,8.86]
[1723995118514,1.71438899,145.85,145.77,20.0]
[1723995118515,1.71438899,145.85,145.78,8.86]
[1723995118714,1.71438899,145.85,145.79,20.0]
[1723995118715,15.0476,145.84,145.79,20.0]
[1723995119026,1.71458528,145.83,145.79,20.0]
[1723995120504,1.71460171,145.82,145.71,15.3882]
[1723995120805,1.71460171,145.82,145.73,8.86]
[1723995120806,46.84009171,145.82,145.73,8.86]
[1723995121212,0.37647,145.81,145.73,8.86]
[1723995121428,0.37647,145.81,145.68,6.79365324]
[1723995121429,16.88841514,145.8,145.68,15.3882]
[1723995121635,45.0,145.79,145.72,8.86]
[1723995122616,1.71523783,145.78,145.72,8.86]
[1723995122816,45.0,145.79,145.74,8.86]
[1723995123016,15.17309,145.8,145.74,8.86]
[1723995124928,15.0476,145.8,145.76,8.86]
[1723995125427,6.0726,145.83,145.78,8.86]
[1723995126417,6.0726,145.83,145.77,22.16]
[1723995128312,45.0,145.82,145.75,22.16]
[1723995128632,45.0,145.82,145.76,20.0]
[1723995129134,6.0726,145.83,145.77,22.16]
[1723995131425,16.1357,145.84,145.79,22.16]
[1723995132919,16.1357,145.84,145.77,22.16]
[1723995133119,1.71445059,145.83,145.78,20.0]
[1723995133722,1.7146034,145.82,145.75,22.16]
[1723995134126,7.7665034,145.82,145.73,38.5614]
[1723995134742,6.0519,145.82,145.75,22.16]
[1723995135255,6.0519,145.82,145.76,20.0]
[1723995135725,16.1357,145.84,145.77,22.16]
[1723995136036,16.1357,145.84,145.79,22.16]
[1723995137435,1.71436406,145.83,145.77,22.16]
[1723995137753,6.0519,145.81,145.76,20.0]
[1723995137926,6.0519,145.81,145.74,22.16]
[1723995138132,6.0519,145.81,145.76,22.16]
[1723995138343,16.26119,145.84,145.76,22.16]
[1723995139737,45.25098,145.83,145.75,20.0]
[1723995140048,1.71482434,145.82,145.75,20.0]
[1723995140665,1.71482434,145.82,145.73,22.16]
[1723995140857,1.71482434,145.82,145.74,20.0]
[1723995141037,15.6549,145.8,145.73,22.16]
[1723995141555,15.6549,145.8,145.75,22.16]
[1723995141732,15.6549,145.8,145.76,1.0792267]
[1723995142467,15.6549,145.8,145.75,22.16]
[1723995146745,6.0519,145.81,145.75,22.16]
[1723995146958,6.0519,145.81,145.76,20.0]
[1723995148452,6.0519,145.81,145.76,28.87]
[1723995150355,21.7068,145.84,145.78,8.87]
[1723995150559,21.7068,145.84,145.76,42.16]
[1723995150560,45.0,145.83,145.76,42.16]
[1723995151573,21.7068,145.84,145.76,42.16]
[1723995151574,21.7068,145.84,145.78,22.16]
[1723995151742,1.71454691,145.83,145.76,42.16]
[1723995152064,21.7068,145.84,145.76,42.16]
[1723995152762,45.0,145.83,145.76,42.16]
[1723995153060,21.7068,145.84,145.76,42.16]
[1723995153260,21.7068,145.84,145.77,0.12549]
[1723995153443,21.7068,145.84,145.78,22.16]
[1723995157148,28.73363852,145.88,145.78,22.16]
[1723995157358,21.5871,145.88,145.8,22.16]
[1723995158270,1.71425011,145.87,145.8,22.16]
[1723995158765,45.0,145.87,145.8,22.16]
[1723995159869,1.71424683,145.86,145.78,22.16]
[1723995160051,1.71443876,145.85,145.78,22.16]
[1723995160845,1.71443892,145.86,145.76,20.0]
[1723995161050,1.71443909,145.85,145.77,22.28549]
[1723995161252,1.71443909,145.85,145.78,20.0]
[1723995161856,45.0,145.87,145.81,22.16]
[1723995162667,1.71422028,145.86,145.79,22.16]
[1723995162970,1.7142129,145.86,145.8,20.0]
[1723995163186,45.0,145.87,145.8,20.0]
[1723995163973,1.71421635,145.86,145.8,20.0]
[1723995164552,45.0,145.87,145.8,20.0]
[1723995166255,1.71426391,145.86,145.8,20.0]
[1723995166451,45.0,145.87,145.8,20.0]
[1723995169365,21.5871,145.88,145.8,20.0]
[1723995169567,21.5871,145.88,145.81,23.23776318]
[1723995169773,21.5871,145.88,145.81,22.16]
[1723995170484,21.5871,145.88,145.82,8.86]
[1723995173467,21.5871,145.88,145.84,8.86]
[1723995178582,21.5871,145.88,145.8,20.0]
[1723995178583,22.1973,145.92,145.86,8.86]
[1723995178771,22.1973,145.92,145.88,8.86]
[1723995179674,22.1973,145.92,145.83,1.07611681]
[1723995179675,1.7134564,145.91,145.83,0.12549]
[1723995179981,22.1973,145.92,145.85,8.86]
[1723995180174,22.1973,145.92,145.86,20.0]
[1723995180374,1.71360624,145.91,145.86,20.0]
[1723995181281,22.1973,145.92,145.86,20.0]
[1723995182965,22.1973,145.92,145.87,8.86]
[1723995183971,22.1973,145.92,145.89,8.86]
[1723995185782,22.1973,145.92,145.87,8.86]
[1723995186091,1.7133822,145.91,145.85,8.86]
[1723995186289,22.1973,145.92,145.85,8.86]
[1723995186692,46.7137116,145.91,145.85,8.86]
[1723995187671,0.25098,145.9,145.78,13.35515324]
[1723995187985,15.4899,145.88,145.81,8.86]
[1723995188301,1.71414417,145.87,145.81,8.86]
[1723995190493,15.4899,145.88,145.83,8.86]
[1723995190699,15.4899,145.88,145.85,8.86]
[1723995191397,15.4899,145.91,145.87,8.86]
[1723995192510,15.4899,145.91,145.86,22.13]
[1723995193976,17.20357731,145.91,145.82,22.13]
[1723995194200,45.12549,145.9,145.83,20.12549]
[1723995194402,45.25098,145.9,145.83,20.0]
[1723995196101,15.4899,145.91,145.84,22.13]
[1723995199922,15.4899,145.91,145.86,22.13]
[1723995200297,15.4899,145.91,145.87,1.0761249]
[1723995200500,15.4899,145.91,145.87,1.07616899]
[1723995200720,15.4899,145.91,145.86,22.13]
[1723995201011,15.4899,145.91,145.86,23.20619905]
[1723995201191,15.4899,145.91,145.86,22.13]
[1723995202420,17.20333319,145.91,145.86,22.13]
[1723995203495,17.20333319,145.91,145.83,20.0]
[1723995203496,15.4899,145.91,145.84,22.13]
[1723995203701,15.4899,145.91,145.85,20.0]
[1723995205101,15.4899,145.91,145.84,22.13]
[1723995205506,15.4899,145.91,145.85,20.0]
[1723995206509,15.4899,145.91,145.86,23.33166825]
[1723995206717,15.4899,145.91,145.86,22.25549]
[1723995208395,15.4899,145.91,145.86,22.13]
[1723995210819,15.4899,145.91,145.86,23.20614685]
[1723995211007,15.4899,145.91,145.86,22.13]
[1723995211197,15.4899,145.91,145.87,20.0]
[1723995214496,15.4899,145.91,145.87,28.85]
[1723995215514,15.4899,145.91,145.89,8.85]
[1723995215814,15.0648,145.95,145.9,1.07579231]
[1723995216119,15.0648,145.95,145.91,8.85]
[1723995217195,15.0648,145.99,145.94,8.85]
[1723995217507,15.0648,145.99,145.97,8.85]
[1723995217705,6.0867,146.0,145.97,8.85]
[1723995218406,6.0867,146.0,145.96,22.1]
[1723995218609,21.42026515,146.03,145.96,22.1]
[1723995218808,21.42026515,146.03,145.98,22.1]
[1723995219316,6.35546515,146.03,146.0,22.1]
[1723995219815,6.35546515,146.03,145.98,22.1]
[1723995220196,6.35546515,146.03,146.0,22.1]
[1723995221399,6.35546515,146.03,146.02,22.1]
[1723995226231,6.35546515,146.03,146.02,42.1]
[1723995227113,6.35546515,146.03,146.0,22.1]
[1723995227309,6.35546515,146.03,146.01,20.0]
[1723995232942,6.35546515,146.03,145.93,15.1327]
[1723995233145,45.0,146.02,145.95,22.1]
[1723995233624,45.0,146.02,145.92,15.0648]
[1723995233806,15.0648,145.99,145.92,15.0648]
[1723995234006,6.3228,145.98,145.92,15.0648]
[1723995234306,45.0,145.97,145.91,22.1]
[1723995234932,30.0,145.95,145.91,22.1]
[1723995237235,30.0,145.95,145.92,20.0]
[1723995238228,30.0,145.95,145.93,22.1]
[1723995238628,45.0,145.97,145.93,22.1]
[1723995239665,20.59,146.11,145.93,22.1]
[1723995239666,6.3228,146.02,145.95,22.1]
[1723995240330,1.71250643,146.01,145.93,22.1]
[1723995240633,1.71250643,146.01,145.94,20.0]
[1723995240833,46.71250643,146.01,145.93,22.1]
[1723995241239,45.0,146.01,145.93,22.1]
[1723995241539,45.0,146.01,145.94,1.07399827]
[1723995241745,45.0,146.01,145.93,22.1]
[1723995241925,1.71270622,146.0,145.93,22.1]
[1723995242130,45.0,146.01,145.93,22.1]
[1723995243940,45.0,146.01,145.94,1.0739378]
[1723995244353,45.0,146.01,145.93,22.1]
[1723995244658,45.0,146.01,145.94,20.0]
[1723995245079,6.3228,146.02,145.96,0.12549]
[1723995245368,6.3228,146.02,145.97,22.1]
[1723995246565,45.0,146.01,145.97,22.1]
[1723995247468,45.0,146.01,145.95,22.1]
[1723995247681,45.0,146.01,145.96,20.0]
[1723995249461,6.3228,146.02,145.96,20.0]
[1723995249665,21.38246515,146.03,145.96,20.0]
[1723995249967,45.0,146.02,145.96,21.07321681]
[1723995250175,21.38246515,146.03,145.97,22.35098]
[1723995250850,21.38246515,146.03,145.97,22.22549]
[1723995251051,21.38246515,146.03,145.97,22.1]
[1723995251459,45.0,146.02,145.97,22.1]
[1723995252988,45.0,146.02,145.98,1.07311399]
[1723995253369,45.0,146.02,145.97,22.1]
[1723995253885,21.38246515,146.03,145.97,22.1]
[1723995256155,6.35546515,146.03,145.97,22.1]
[1723995256360,6.35546515,146.03,145.99,22.1]
[1723995256575,6.35546515,146.03,146.0,8.84]
[1723995258085,6.35546515,146.03,145.98,8.84]
[1723995258757,45.0,146.02,145.98,8.84]
[1723995260788,6.35546515,146.03,145.98,8.84]
[1723995261367,6.35546515,146.03,146.0,8.84]
[1723995263470,45.0,146.02,145.98,8.84]
[1723995269582,6.35546515,146.03,145.98,8.84]
[1723995270276,6.35546515,146.03,146.0,8.84]
[1723995274807,6.35546515,146.03,146.02,8.84]
[1723995274980,6.35546515,146.03,146.02,9.91199859]
[1723995275178,6.35546515,146.03,146.02,8.84]
[1723995275822,6.35546515,146.03,146.02,28.84]
[1723995278782,6.35546515,146.03,146.02,28.96549]
[1723995278981,6.35546515,146.03,146.02,29.09098]
[1723995279175,6.35546515,146.03,146.02,20.0]
[1723995279399,6.35546515,146.03,146.01,8.84]
[1723995279614,6.35546515,146.03,146.02,20.0]
[1723995281735,6.35546515,146.03,145.99,0.12549]
[1723995281902,6.35546515,146.03,145.97,8.84]
[1723995283719,6.35546515,146.03,145.98,20.0]
[1723995284109,46.71218268,146.02,145.98,20.0]
[1723995284318,45.0,146.02,145.98,20.0]
[1723995285489,45.0,146.02,145.99,8.84]
[1723995285694,6.35546515,146.03,145.99,8.84]
[1723995285995,6.35546515,146.03,145.99,9.91299328]
[1723995286520,6.35546515,146.03,145.99,9.91301313]
[1723995287124,5.35546515,146.03,145.99,9.91301313]
[1723995287303,5.35546515,146.03,146.01,8.84]
[1723995289709,5.35546515,146.03,146.01,24.6543]
[1723995289900,5.35546515,146.03,146.02,20.25098]
[1723995291303,5.35546515,146.03,146.02,29.09098]
[1723995291530,5.35546515,146.03,146.02,29.34196]
[1723995291904,5.35546515,146.03,146.02,30.41316741]
[1723995292407,5.35546515,146.03,146.02,29.34196]
[1723995292823,5.35546515,146.03,146.02,20.50196]
[1723995293609,5.35546515,146.03,146.02,21.3223149]
[1723995293825,5.35546515,146.03,146.02,20.25098]
[1723995295107,5.35546515,146.03,146.02,21.32255219]
[1723995295730,5.35546515,146.03,146.02,20.25098]
[1723995297219,5.35546515,146.03,146.02,21.32256939]
[1723995297411,5.35546515,146.03,146.02,20.12549]
[1723995297901,5.35546515,146.03,146.02,21.19717655]
[1723995298105,5.35546515,146.03,146.02,20.12549]
[1723995299031,5.35546515,146.03,146.02,21.19719409]
[1723995299431,5.35546515,146.03,146.02,20.12549]
[1723995300530,5.35546515,146.03,146.02,20.25098]
[1723995300919,5.35546515,146.03,146.02,30.16230895]
[1723995301521,23.5771524,146.12,146.02,56.93328895]
[1723995301726,45.0,146.11,146.07,8.84]
[1723995302138,45.0,146.11,146.08,1.07073931]
[1723995302340,23.5771524,146.12,146.09,8.84]
[1723995302512,27.4305,146.19,146.12,0.12549]
[1723995302513,16.5201,146.19,146.12,0.12549]
[1723995302714,0.8728613,146.27,146.12,0.12549]
[1723995302715,16.5201,146.23,146.18,8.84]
[1723995303733,16.5201,146.23,146.12,1.31859441]
[1723995304045,16.0201,146.23,146.17,8.84]
[1723995304533,16.0201,146.23,146.17,22.04]
[1723995306632,45.0,146.22,146.17,22.04]
[1723995309840,45.0,146.22,146.15,22.04]
[1723995310023,45.0,146.22,146.16,20.0]
[1723995310428,45.0,146.22,146.13,22.04]
[1723995310623,0.12549,146.21,146.14,20.0]
[1723995310942,0.12549,146.21,146.13,22.04]
[1723995311135,45.0,146.22,146.14,1.06839787]
[1723995311435,45.0,146.22,146.13,22.04]
[1723995311830,45.0,146.22,146.14,0.12549]
[1723995312036,45.0,146.22,146.15,22.04]
[1723995312716,45.0,146.22,146.16,20.0]
[1723995313141,45.0,146.22,146.16,21.06815055]
[1723995313360,45.0,146.22,146.16,20.0]
[1723995313931,45.0,146.22,146.15,22.04]
[1723995314234,45.0,146.22,146.16,20.0]
[1723995315020,16.0201,146.23,146.17,22.04]
[1723995315750,16.0201,146.23,146.17,23.1076038]
[1723995315923,16.0201,146.23,146.17,22.04]
[1723995316330,45.0,146.22,146.17,22.04]
[1723995318734,45.0,146.22,146.17,1.06804078]
[1723995319525,45.0,146.22,146.16,20.0]
[1723995324124,45.0,146.22,146.15,22.04]
[1723995325835,45.0,146.22,146.13,22.04]
[1723995326032,45.0,146.22,146.14,20.0]
[1723995326437,45.0,146.22,146.15,8.82]
[1723995327262,8.82,146.2,146.07,25.48598552]
[1723995327470,8.82,146.2,146.05,15.8209]
[1723995327471,24.6326,146.18,146.05,15.8209]
[1723995327757,8.94549,146.16,146.06,8.82]
[1723995327938,6.61997,146.15,146.06,8.82]
[1723995328150,51.61997,146.15,146.06,8.82]
[1723995328856,51.61997,146.15,146.05,15.8209]
[1723995329078,10.53116025,146.14,146.01,33.69373594]
[1723995329236,45.25098,146.13,146.05,8.82]
[1723995330075,46.96229285,146.13,146.05,8.82]
[1723995330536,24.75809,146.12,146.03,8.82]
[1723995330740,45.25098,146.11,146.03,8.82]
[1723995331744,45.25098,146.11,146.04,20.0]
[1723995333352,45.25098,146.11,146.03,8.82]
[1723995333558,45.25098,146.11,146.04,20.0]
[1723995335354,45.25098,146.11,146.03,8.82]
[1723995335555,8.94549,146.1,146.01,8.82]
[1723995335754,51.5718,146.09,146.02,20.0]
[1723995337346,51.5718,146.09,146.01,8.82]
[1723995337552,9.19647,146.08,145.99,8.82]
[1723995337753,45.0,146.07,146.0,20.0]
[1723995337966,45.0,146.07,146.01,8.82]
[1723995338352,45.0,146.07,146.01,9.89241871]
[1723995338866,45.0,146.07,146.0,20.0]
[1723995339075,45.0,146.07,146.01,9.89250296]
[1723995339262,45.0,146.07,146.01,8.82]
[1723995340569,45.37647,146.08,146.01,8.82]
[1723995345768,15.8565,146.07,146.01,8.82]
[1723995345967,45.0,146.06,146.01,8.82]
[1723995351194,45.0,146.06,145.97,20.0]
[1723995351367,0.12549,146.05,145.97,8.82]
[1723995351560,0.25098,146.05,145.97,8.82]
[1723995351880,1.96324926,146.05,145.97,8.82]
[1723995352078,0.25098,146.05,145.97,8.82]
[1723995353078,1.96322795,146.05,145.98,20.0]
[1723995353276,6.5718,146.04,145.98,20.0]
[1723995353583,60.98199,146.03,145.94,8.82]
[1723995353882,61.23297,146.03,145.94,8.82]
[1723995355184,61.23297,146.03,145.95,20.0]
[1723995358673,1.71255451,146.02,145.94,8.82]
[1723995358885,1.71267816,146.01,145.94,8.82]
[1723995359670,46.71267816,146.01,145.94,8.82]
[1723995359981,45.0,146.01,145.94,8.82]
[1723995360191,45.0,146.02,145.94,8.82]
[1723995362088,53.82,146.02,145.93,8.82]
[1723995362293,0.37647,146.01,145.94,20.0]
[1723995362995,0.37647,146.01,145.92,8.82]
[1723995363303,2.08933314,146.01,145.93,20.0]
[1723995363491,6.1496,145.99,145.93,20.0]
[1723995363695,45.0,145.98,145.93,20.0]
[1723995365905,45.0,145.98,145.92,8.82]
[1723995366064,45.0,145.98,145.93,20.0]
[1723995367499,45.0,145.98,145.94,9.89463546]
[1723995367793,6.1496,145.99,145.96,8.82]
[1723995368095,22.0876,146.03,145.98,8.82]
[1723995369295,45.0,146.02,145.98,8.82]
[1723995369497,45.0,146.02,145.96,8.82]
[1723995369664,45.0,146.02,145.94,8.82]
[1723995369869,0.25098,146.01,145.95,20.0]
[1723995370596,0.12549,146.0,145.94,8.82]
[1723995370796,0.25098,146.01,145.94,8.82]
[1723995373093,22.0876,146.03,145.98,8.82]
[1723995373292,22.0876,146.03,146.0,8.82]
[1723995373471,15.8565,146.03,146.0,8.82]
[1723995373669,6.2311,146.07,146.02,8.82]
[1723995373670,21.776,146.07,146.02,8.82]
[1723995373872,21.776,146.07,146.0,8.82]
[1723995374674,23.48818438,146.07,146.0,8.82]
[1723995374878,21.776,146.07,146.0,8.82]
[1723995375074,0.12549,146.06,146.0,8.82]
[1723995375390,8.82,146.05,145.96,8.82]
[1723995375590,10.53252821,146.05,145.96,8.82]
[1723995375774,45.25098,146.04,145.96,8.82]
[1723995376103,0.12549,146.03,145.96,8.82]
[1723995380199,0.12549,146.03,145.94,1.07384622]
[1723995380389,0.12549,146.03,145.96,8.82]
[1723995380589,0.12549,146.03,145.96,9.89384681]
[1723995380794,0.12549,146.03,145.96,8.82]
[1723995388788,1.83802103,146.03,145.96,8.82]
[1723995389503,0.12549,146.03,145.96,8.82]
[1723995393705,45.25098,146.04,145.96,8.82]
[1723995393899,45.25098,146.04,145.97,1.07388799]
[1723995395599,45.25098,146.04,145.93,0.12549]
[1723995395600,6.5266,146.02,145.95,8.82]
[1723995395795,45.0,146.01,145.95,8.82]
[1723995397732,45.0,146.01,145.91,32.756]
[1723995397733,0.25098,146.0,145.91,16.378]
[1723995397936,16.1607,145.98,145.91,8.82]
[1723995398130,45.0,145.97,145.91,8.82]
[1723995398454,51.5266,145.97,145.9,8.82]
[1723995399334,51.5266,145.97,145.91,20.0]
[1723995402757,1.96419444,145.96,145.87,0.12549]
[1723995403067,1.96419444,145.96,145.86,21.61683847]
[1723995403068,1.71333349,145.95,145.88,8.82]
[1723995404165,1.71333349,145.95,145.89,20.0]
[1723995404335,1.71333349,145.95,145.88,8.82]
[1723995404523,1.71333349,145.95,145.89,20.0]
[1723995404727,16.1607,145.93,145.86,6.47203847]
[1723995405046,6.5266,145.91,145.85,8.82]
[1723995405247,45.0,145.9,145.85,8.82]
[1723995406334,45.0,145.9,145.86,20.0]
[1723995407658,45.0,145.9,145.86,19.31]
[1723995409355,45.0,145.9,145.85,8.82]
[1723995409544,46.71368493,145.9,145.85,8.82]
[1723995412967,45.0,145.9,145.85,8.82]
[1723995414780,45.0,145.9,145.8,50.14591721]
[1723995414983,45.0,145.9,145.84,8.82]
[1723995415953,45.0,145.9,145.86,8.82]
[1723995423562,6.5266,145.91,145.81,36.35677835]
[1723995423563,6.5266,145.91,145.88,8.82]
[1723995423767,6.5266,145.91,145.81,53.15283594]
[1723995423768,16.1607,145.93,145.9,8.82]
[1723995424696,6.1393,145.94,145.92,8.82]
[1723995425390,16.4719,145.97,145.93,1.07506355]
[1723995425684,16.4719,145.97,145.94,8.82]
[1723995428691,16.4719,145.97,145.89,0.12549]
[1723995428888,45.0,145.96,145.91,8.82]
[1723995430468,45.0,145.96,145.93,8.82]
[1723995431794,16.4719,145.97,145.93,8.82]
[1723995432174,46.71287335,145.96,145.93,8.82]
[1723995432385,45.0,145.96,145.93,8.82]
[1723995432688,16.4719,145.97,145.95,8.82]
[1723995435391,16.4719,145.97,145.93,8.82]
[1723995435697,45.0,145.96,145.9,8.82]
[1723995436597,30.0,145.95,145.9,8.82]
[1723995440313,30.0,145.95,145.92,8.82]
[1723995445416,16.4719,145.97,145.94,8.82]
[1723995446613,6.1393,145.98,145.94,8.82]
[1723995448216,15.1777,146.01,145.94,8.82]
[1723995448420,45.0,146.0,145.94,8.82]
[1723995448717,44.1969,146.0,145.94,8.82]
[1723995449702,15.1777,146.01,145.96,8.82]
[1723995449907,6.3465,146.02,145.98,8.82]
[1723995450103,15.1777,146.04,146.0,8.82]
[1723995451532,45.0,146.03,146.0,8.82]
[1723995453309,15.1777,146.04,146.0,8.82]
[1723995453731,15.1777,146.04,145.95,35.28]
[1723995453732,15.1777,146.04,145.98,8.82]
[1723995454413,45.0,146.03,145.98,8.82]
[1723995458328,0.12549,146.02,145.92,16.2329]
[1723995458559,0.37647,146.02,145.94,8.82]
[1723995460336,0.37647,146.02,145.95,20.0]
[1723995470431,0.37647,146.02,145.94,8.82]
[1723995470637,25.4496,146.0,145.91,8.82]
[1723995470837,0.25098,145.99,145.92,20.0]
[1723995471079,45.25098,145.99,145.92,20.0]